fUST/lending_fUST_20241106
["ID","MTS","AMOUNT","RATE_DAILY","PERIOD"]
[341453970,1730901040055,-431.01696856,0.0002625,4]
[341453983,1730901044307,-23.21052674,0.0002625,4]
[341453984,1730901044318,-420.0,0.0002633,2]
[341453985,1730901044328,-454.2274953,0.000265,4]
[341453986,1730901044339,-454.2274953,0.0002675,4]
[341453987,1730901044349,-600.0,0.00027,2]
[341453988,1730901044359,-847.27050516,0.00027,120]
[341453989,1730901044368,-154.22297969,0.00027,4]
[341453990,1730901044378,-400.70570385,0.00027292,2]
[341453991,1730901044387,-189.0,0.00027292,2]
[341453992,1730901044397,-189.0,0.00027292,2]
[341453993,1730901044407,-189.0,0.00027292,2]
[341453994,1730901044416,-189.0,0.00027292,2]
[341453995,1730901044425,-189.0,0.00027292,2]
[341453996,1730901044435,-189.0,0.00027292,2]
[341453997,1730901044445,-189.0,0.00027292,2]
[341453998,1730901044459,-189.0,0.00027292,2]
[341453999,1730901044471,-189.0,0.00027292,2]
[341454000,1730901044481,-189.0,0.00027292,2]
[341454001,1730901044490,-189.0,0.00027292,2]
[341454002,1730901044501,-189.0,0.00027292,2]
[341454003,1730901044511,-189.0,0.00027292,2]
[341454004,1730901044522,-189.0,0.00027292,2]
[341454005,1730901044533,-189.0,0.00027292,2]
[341454006,1730901044543,-189.0,0.00027292,2]
[341454007,1730901044554,-189.0,0.00027292,2]
[341454008,1730901044565,-189.0,0.00027292,2]
[341454009,1730901044576,-189.0,0.00027292,2]
[341454010,1730901044587,-189.0,0.00027292,2]
[341454011,1730901044597,-189.0,0.00027292,2]
[341454012,1730901044606,-189.0,0.00027292,2]
[341454013,1730901044616,-153.0,0.00027292,2]
[341454014,1730901044626,-153.0,0.00027292,2]
[341454015,1730901044637,-189.0,0.00027292,2]
[341454016,1730901044646,-189.0,0.00027292,2]
[341454017,1730901044662,-189.0,0.00027292,2]
[341454018,1730901044671,-189.0,0.00027292,2]
[341454019,1730901044681,-189.0,0.00027292,2]
[341454020,1730901044691,-189.0,0.00027292,2]
[341454021,1730901044701,-189.0,0.00027292,2]
[341454022,1730901044711,-189.0,0.00027292,2]
[341454023,1730901044720,-189.0,0.00027292,2]
[341454024,1730901044730,-189.0,0.00027292,2]
[341454025,1730901044739,-189.0,0.00027292,2]
[341454026,1730901044748,-189.0,0.00027292,2]
[341454027,1730901044758,-189.0,0.00027292,2]
[341454028,1730901044768,-189.0,0.00027292,2]
[341454029,1730901044777,-153.0,0.00027292,2]
[341454030,1730901044787,-153.0,0.00027292,2]
[341454031,1730901044796,-189.0,0.00027292,2]
[341454032,1730901044807,-189.0,0.00027292,2]
[341454033,1730901044819,-189.0,0.00027292,2]
[341454034,1730901044830,-189.0,0.00027292,2]
[341454035,1730901044840,-189.0,0.00027292,2]
[341454036,1730901044851,-189.0,0.00027292,2]
[341454037,1730901044862,-189.0,0.00027292,2]
[341454038,1730901044871,-189.0,0.00027292,2]
[341454039,1730901044880,-189.0,0.00027292,2]
[341454040,1730901044890,-189.0,0.00027292,2]
[341454041,1730901044902,-189.0,0.00027292,2]
[341454042,1730901044912,-189.0,0.00027292,2]
[341454043,1730901044922,-189.0,0.00027292,2]
[341454044,1730901044932,-189.0,0.00027292,2]
[341454045,1730901044942,-153.0,0.00027292,2]
[341454046,1730901044952,-153.0,0.00027292,2]
[341454047,1730901044962,-500.0,0.00027373,2]
[341454048,1730901044973,-500.0,0.00027373,2]
[341454049,1730901044983,-500.0,0.00027373,2]
[341454050,1730901044993,-500.0,0.00027373,2]
[341454051,1730901045003,-238.90172066,0.00027396,2]
[341454052,1730901045013,-500.0,0.00027396,2]
[341454053,1730901045024,-277.3183699,0.00027396,2]
[341454054,1730901045035,-509.53830088,0.00027397,2]
[341454055,1730901045045,-500.0,0.00027397,2]
[341454056,1730901045056,-510.85079377,0.00027397,2]
[341454057,1730901045066,-573.41920925,0.00027397,2]
[341454058,1730901045075,-501.38397602,0.00027397,2]
[341454059,1730901045085,-500.0,0.00027397,2]
[341454060,1730901045102,-500.0,0.00027397,2]
[341454061,1730901045111,-500.0,0.00027397,2]
[341454062,1730901045120,-500.0,0.00027397,2]
[341454063,1730901045130,-500.0,0.00027397,2]
[341454064,1730901045139,-500.0,0.00027397,2]
[341454065,1730901045148,-500.0,0.00027397,2]
[341454066,1730901045157,-500.0,0.00027397,2]
[341454067,1730901045166,-500.0,0.00027397,2]
[341454068,1730901045175,-500.0,0.00027397,2]
[341454069,1730901045185,-500.0,0.00027397,2]
[341454070,1730901045194,-158.01943536,0.00027397,2]
[341454071,1730901045203,-500.0,0.00027397,2]
[341454072,1730901045213,-454.83759014,0.00027397,2]
[341454073,1730901045222,-500.0,0.00027397,2]
[341454074,1730901045232,-500.0,0.00027397,2]
[341454075,1730901045242,-500.0,0.00027397,2]
[341454076,1730901045252,-500.0,0.00027397,2]
[341454077,1730901045264,-511.72303551,0.00027397,2]
[341454078,1730901045277,-500.0,0.00027397,2]
[341454079,1730901045289,-500.0,0.00027397,2]
[341454080,1730901045301,-500.0,0.00027397,2]
[341454081,1730901045312,-554.88712651,0.00027397,2]
[341454082,1730901045322,-500.0,0.00027397,2]
[341454083,1730901045332,-500.0,0.00027397,2]
[341454084,1730901045342,-500.0,0.00027397,2]
[341454085,1730901045352,-500.0,0.00027397,2]
[341454086,1730901045362,-221.59322181,0.00027397,2]
[341454087,1730901045372,-500.0,0.00027397,2]
[341454088,1730901045382,-587.0665104,0.00027397,2]
[341454089,1730901045392,-500.0,0.00027397,2]
[341454090,1730901045402,-548.24997201,0.00027397,2]
[341454091,1730901045411,-500.0,0.00027397,2]
[341454092,1730901045420,-500.0,0.00027397,2]
[341454093,1730901045430,-503.76966058,0.00027397,2]
[341454094,1730901045439,-603.4,0.00027397,2]
[341454095,1730901045450,-350.9487335,0.00027397,2]
[341454096,1730901045463,-500.0,0.00027397,2]
[341454097,1730901045473,-500.0,0.00027397,2]
[341454098,1730901045484,-500.0,0.00027397,2]
[341454099,1730901045495,-500.0,0.00027397,2]
[341454100,1730901045506,-230.73400026,0.00027397,2]
[341454101,1730901045516,-500.0,0.00027397,2]
[341454102,1730901045526,-500.0,0.00027397,2]
[341454103,1730901045537,-500.0,0.00027397,2]
[341454104,1730901045547,-500.0,0.00027397,2]
[341454105,1730901045558,-500.0,0.00027397,2]
[341454106,1730901045568,-500.0,0.00027397,2]
[341454107,1730901045578,-522.04984613,0.00027397,2]
[341454108,1730901045588,-517.66741829,0.00027397,2]
[341454109,1730901045598,-500.0,0.00027397,2]
[341454110,1730901045608,-891.15,0.00027397,2]
[341454111,1730901045618,-500.0,0.00027397,2]
[341454112,1730901045628,-4686.94,0.00027397,2]
[341454113,1730901045639,-500.0,0.00027397,2]
[341454114,1730901045648,-500.0,0.00027397,2]
[341454115,1730901045659,-713.47,0.00027397,2]
[341454116,1730901045669,-500.0,0.00027397,2]
[341454117,1730901045679,-500.0,0.00027397,2]
[341454118,1730901045691,-500.0,0.00027397,2]
[341454119,1730901045702,-500.0,0.00027397,2]
[341454120,1730901045712,-500.0,0.00027397,2]
[341454121,1730901045724,-524.55694049,0.00027397,2]
[341454122,1730901045735,-4318.2,0.00027397,2]
[341454123,1730901045745,-500.0,0.00027397,2]
[341454124,1730901045755,-690.35,0.00027397,2]
[341454125,1730901045765,-537.46616543,0.00027397,2]
[341454126,1730901045775,-500.0,0.00027397,2]
[341454127,1730901045786,-500.0,0.00027397,2]
[341454128,1730901045796,-500.0,0.00027397,2]
[341454129,1730901045807,-500.0,0.00027397,2]
[341454130,1730901045817,-500.0,0.00027397,2]
[341454131,1730901045826,-500.0,0.00027397,2]
[341454132,1730901045837,-500.0,0.00027397,2]
[341454133,1730901045846,-506.1044494,0.00027397,2]
[341454134,1730901045856,-500.0,0.00027397,2]
[341454135,1730901045866,-807.28,0.00027397,2]
[341454137,1730901045876,-500.0,0.00027397,2]
[341454139,1730901045886,-508.56068321,0.00027397,2]
[341454141,1730901045895,-513.60240057,0.00027397,2]
[341454142,1730901045905,-500.0,0.00027397,2]
[341454143,1730901045915,-500.0,0.00027397,2]
[341454144,1730901045926,-500.0,0.00027397,2]
[341454145,1730901045937,-500.0,0.00027397,2]
[341454146,1730901045948,-500.0,0.00027397,2]
[341454147,1730901045959,-493.70591098,0.00027397,2]
[341454148,1730901045970,-500.0,0.00027397,2]
[341454149,1730901045990,-500.0,0.00027397,2]
[341454150,1730901046002,-500.0,0.00027397,2]
[341454151,1730901046012,-500.0,0.00027397,2]
[341454152,1730901046023,-500.0,0.00027397,2]
[341454153,1730901046034,-500.0,0.00027397,2]
[341454154,1730901046046,-14572.87036931,0.000275,2]
[341454155,1730901046059,-207.18,0.00027661,10]
[341454156,1730901046069,-500.0,0.00027671,2]
[341454157,1730901046225,-500.0,0.00027671,2]
[341454158,1730901046236,-500.0,0.00027671,2]
[341454159,1730901046247,-500.0,0.00027671,2]
[341454160,1730901046257,-500.0,0.00027671,2]
[341454161,1730901046267,-500.0,0.00027671,2]
[341454162,1730901046277,-500.0,0.00027671,2]
[341454163,1730901046287,-603.4,0.00027671,2]
[341454164,1730901046298,-500.0,0.00027671,2]
[341454165,1730901046311,-500.0,0.00027671,2]
[341454166,1730901046320,-500.0,0.00027671,2]
[341454167,1730901046330,-500.0,0.00027671,2]
[341454168,1730901046342,-500.0,0.00027671,2]
[341454169,1730901046353,-891.15,0.00027671,2]
[341454170,1730901046363,-4686.94,0.00027671,2]
[341454171,1730901046373,-500.0,0.00027671,2]
[341454172,1730901046385,-713.47,0.00027671,2]
[341454173,1730901046396,-588.09940223,0.00027671,2]
[341454174,1730901046407,-500.0,0.00027671,2]
[341454175,1730901046417,-500.0,0.00027671,2]
[341454176,1730901046428,-500.0,0.00027671,2]
[341454177,1730901046438,-4318.2,0.00027671,2]
[341454178,1730901046448,-500.0,0.00027671,2]
[341454179,1730901046461,-690.35,0.00027671,2]
[341454180,1730901046471,-500.0,0.00027671,2]
[341454181,1730901046481,-500.0,0.00027671,2]
[341454182,1730901046492,-500.0,0.00027671,2]
[341454183,1730901046503,-500.0,0.00027671,2]
[341454184,1730901046514,-807.28,0.00027671,2]
[341454185,1730901046524,-500.0,0.00027671,2]
[341454186,1730901046537,-500.0,0.00027671,2]
[341454187,1730901046547,-600.0,0.00027671,2]
[341454188,1730901046559,-531.16961912,0.00027845,2]
[341454189,1730901046570,-500.0,0.00027945,2]
[341454190,1730901046579,-500.0,0.00027945,2]
[341454191,1730901046591,-603.4,0.00027945,2]
[341454192,1730901046601,-500.0,0.00027945,2]
[341454193,1730901046611,-500.0,0.00027945,2]
[341454194,1730901046622,-500.0,0.00027945,2]
[341454195,1730901046635,-500.0,0.00027945,2]
[341454196,1730901046645,-891.15,0.00027945,2]
[341454197,1730901046656,-4686.94,0.00027945,2]
[341454198,1730901046667,-500.0,0.00027945,2]
[341454199,1730901046678,-713.47,0.00027945,2]
[341454200,1730901046689,-500.0,0.00027945,2]
[341454201,1730901046700,-500.0,0.00027945,2]
[341454202,1730901046710,-500.0,0.00027945,2]
[341454203,1730901046720,-4318.2,0.00027945,2]
[341454204,1730901046730,-500.0,0.00027945,2]
[341454205,1730901046739,-690.35,0.00027945,2]
[341454206,1730901046749,-500.0,0.00027945,2]
[341454207,1730901046759,-500.0,0.00027945,2]
[341454208,1730901046768,-500.0,0.00027945,2]
[341454209,1730901046779,-500.0,0.00027945,2]
[341454210,1730901046788,-807.28,0.00027945,2]
[341454211,1730901046799,-500.0,0.00027945,2]
[341454212,1730901046811,-500.0,0.00027945,2]
[341454213,1730901046821,-230.17380484,0.00028,2]
[341454214,1730901046830,-179.255,0.00028187,19]
[341454215,1730901046839,-500.0,0.00028219,2]
[341454216,1730901046848,-603.4,0.00028219,2]
[341454217,1730901046858,-500.0,0.00028219,2]
[341454218,1730901046867,-500.0,0.00028219,2]
[341454219,1730901046876,-500.0,0.00028219,2]
[341454220,1730901046886,-500.0,0.00028219,2]
[341454221,1730901046895,-891.15,0.00028219,2]
[341454222,1730901046906,-4686.94,0.00028219,2]
[341454223,1730901046916,-500.0,0.00028219,2]
[341454224,1730901046926,-713.47,0.00028219,2]
[341454225,1730901046936,-500.0,0.00028219,2]
[341454226,1730901046946,-500.0,0.00028219,2]
[341454227,1730901046956,-500.0,0.00028219,2]
[341454228,1730901046965,-4318.2,0.00028219,2]
[341454229,1730901046974,-537.75116597,0.00028219,2]
[341454230,1730901046984,-690.35,0.00028219,2]
[341454231,1730901046993,-500.0,0.00028219,2]
[341454232,1730901047003,-500.0,0.00028219,2]
[341454233,1730901047014,-500.0,0.00028219,2]
[341454234,1730901047025,-807.28,0.00028219,2]
[341454235,1730901047034,-500.0,0.00028219,2]
[341454236,1730901047044,-500.0,0.00028219,2]
[341454237,1730901047055,-500.0,0.00028393,2]
[341454238,1730901047064,-151.0,0.00028493,7]
[341454239,1730901047074,-500.0,0.00028493,2]
[341454240,1730901047083,-151.0,0.00028493,7]
[341454241,1730901047092,-151.0,0.00028493,2]
[341454242,1730901047102,-603.4,0.00028493,2]
[341454243,1730901047112,-500.0,0.00028493,2]
[341454244,1730901047122,-500.0,0.00028493,2]
[341454245,1730901047133,-500.0,0.00028493,2]
[341454246,1730901047142,-500.0,0.00028493,2]
[341454247,1730901047152,-891.15,0.00028493,2]
[341454248,1730901047162,-4686.94,0.00028493,2]
[341454249,1730901047172,-500.0,0.00028493,2]
[341454250,1730901047182,-713.47,0.00028493,2]
[341454251,1730901047192,-500.0,0.00028493,2]
[341454252,1730901047202,-500.0,0.00028493,2]
[341454253,1730901047211,-500.0,0.00028493,2]
[341454254,1730901047222,-4318.2,0.00028493,2]
[341454255,1730901047231,-690.35,0.00028493,2]
[341454256,1730901047242,-151.0,0.00028493,7]
[341454257,1730901047251,-500.0,0.00028493,2]
[341454258,1730901047262,-500.0,0.00028493,2]
[341454259,1730901047272,-151.0,0.00028493,7]
[341454260,1730901047283,-500.0,0.00028493,2]
[341454261,1730901047293,-807.28,0.00028493,2]
[341454262,1730901047303,-500.0,0.00028493,2]
[341454263,1730901047314,-151.0,0.00028493,7]
[341454264,1730901047325,-151.0,0.00028493,7]
[341454265,1730901047336,-151.0,0.00028493,7]
[341454266,1730901047346,-500.0,0.00028493,2]
[341454267,1730901047356,-587.0,0.00028545,2]
[341454268,1730901047365,-870.43239126,0.00028577,2]
[341454269,1730901047375,-151.0,0.00028667,7]
[341454270,1730901047384,-151.0,0.00028667,7]
[341454271,1730901047394,-151.0,0.00028667,7]
[341454272,1730901047403,-151.0,0.00028667,7]
[341454273,1730901047413,-163.238076,0.00028667,7]
[341454274,1730901047423,-202.036678,0.00028667,7]
[341454275,1730901047432,-294.171074,0.00028667,7]
[341454276,1730901047442,-294.171074,0.00028667,7]
[341454277,1730901047452,-216.01366,0.00028667,7]
[341454278,1730901047464,-216.01366,0.00028667,7]
[341454279,1730901047473,-11133.25438753,0.00028667,2]
[341454280,1730901047483,-531.1696191,0.00028729,2]
[341454281,1730901047493,-151.0,0.00028742,7]
[341454282,1730901047504,-511.5078851,0.00028742,5]
[341454283,1730901047514,-1000.0,0.00028742,2]
[341454284,1730901047524,-1000.0,0.00028742,5]
[341454285,1730901047537,-500.0,0.00028767,2]
[341454286,1730901047546,-603.4,0.00028767,2]
[341454287,1730901047558,-500.0,0.00028767,2]
[341454288,1730901047573,-500.0,0.00028767,2]
[341454289,1730901047583,-500.0,0.00028767,2]
[341454290,1730901047592,-500.0,0.00028767,2]
[341454291,1730901047601,-891.15,0.00028767,2]
[341454292,1730901047611,-4686.94,0.00028767,2]
[341454293,1730901047620,-500.0,0.00028767,2]
[341454294,1730901047630,-713.47,0.00028767,2]
[341454295,1730901047640,-500.0,0.00028767,2]
[341454296,1730901047650,-500.0,0.00028767,2]
[341454297,1730901047660,-500.0,0.00028767,2]
[341454298,1730901047669,-4318.2,0.00028767,2]
[341454299,1730901047679,-690.35,0.00028767,2]
[341454300,1730901047689,-500.0,0.00028767,2]
[341454301,1730901047699,-500.0,0.00028767,2]
[341454302,1730901047710,-181.70669909,0.00028767,2]
[341454303,1730901047720,-807.28,0.00028767,2]
[341454304,1730901047731,-500.0,0.00028767,2]
[341454305,1730901047742,-341.91068083,0.00028767,2]
[341454306,1730901047752,-600.0,0.00028767,2]
[341454307,1730901047762,-152.22,0.0002877,30]
[341454308,1730901047773,-500.0,0.000288,5]
[341454309,1730901047784,-500.0,0.000288,5]
[341454310,1730901047794,-1000.0,0.00028941,2]
[341454311,1730901047806,-433.392,0.00029,30]
[341454312,1730901047816,-151.0,0.00029041,7]
[341454313,1730901047825,-500.0,0.00029041,2]
[341454314,1730901047834,-151.0,0.00029041,2]
[341454315,1730901047845,-151.0,0.00029041,7]
[341454316,1730901047855,-603.4,0.00029041,2]
[341454317,1730901047866,-500.0,0.00029041,2]
[341454318,1730901047878,-500.0,0.00029041,2]
[341454319,1730901047889,-500.0,0.00029041,2]
[341454320,1730901047899,-151.0,0.00029041,7]
[341454321,1730901047910,-500.0,0.00029041,2]
[341454322,1730901047920,-151.0,0.00029041,7]
[341454323,1730901047932,-151.0,0.00029041,7]
[341454324,1730901047942,-508.95,0.00029041,2]
[341454325,1730901047952,-294.171074,0.00029041,7]
[341454326,1730901047962,-294.171074,0.00029041,7]
[341454327,1730901047972,-891.15,0.00029041,2]
[341454328,1730901047982,-4686.94,0.00029041,2]
[341454329,1730901047991,-500.0,0.00029041,2]
[341454330,1730901048000,-713.47,0.00029041,2]
[341454331,1730901048009,-500.0,0.00029041,2]
[341454332,1730901048020,-500.0,0.00029041,2]
[341454333,1730901048030,-359.86331076,0.00029041,2]
[341454334,1730901048039,-4318.2,0.00029041,2]
[341454335,1730901048049,-690.35,0.00029041,2]
[341454336,1730901048060,-155.508223,0.00029041,7]
[341454337,1730901048071,-500.0,0.00029041,2]
[341454338,1730901048082,-500.0,0.00029041,2]
[341454339,1730901048093,-151.0,0.00029041,7]
[341454340,1730901048103,-807.28,0.00029041,2]
[341454341,1730901048112,-553.2376891,0.00029041,2]
[341454342,1730901048121,-151.0,0.00029041,7]
[341454343,1730901048130,-151.0,0.00029041,7]
[341454344,1730901048142,-151.0,0.00029041,7]
[341454345,1730901048152,-150.0,0.00029057,2]
[341454346,1730901048163,-1137.0,0.00029057,2]
[341454347,1730901048172,-529.0,0.00029057,2]
[341454348,1730901048181,-2393.0,0.00029057,2]
[341454349,1730901048191,-216.01366,0.00029057,7]
[341454350,1730901048201,-216.01366,0.00029057,7]
[341454351,1730901048210,-500.0,0.00029218,5]
[341454352,1730901048220,-547.38016533,0.00029218,5]
[341454353,1730901048231,-258.13717353,0.00029218,5]
[341454354,1730901048242,-500.0,0.00029218,5]
[341454355,1730901048252,-500.0,0.00029315,2]
[341454356,1730901048262,-603.4,0.00029315,2]
[341454357,1730901048272,-500.0,0.00029315,2]
[341454358,1730901048281,-500.0,0.00029315,2]
[341454359,1730901048291,-500.0,0.00029315,2]
[341454360,1730901048301,-500.0,0.00029315,2]
[341454361,1730901048311,-508.95,0.00029315,2]
[341454362,1730901048321,-891.15,0.00029315,2]
[341454363,1730901048331,-4686.94,0.00029315,2]
[341454364,1730901048341,-500.0,0.00029315,2]
[341454365,1730901048351,-713.47,0.00029315,2]
[341454366,1730901048362,-500.0,0.00029315,2]
[341454367,1730901048372,-500.0,0.00029315,2]
[341454368,1730901048383,-4318.2,0.00029315,2]
[341454369,1730901048393,-690.35,0.00029315,2]
[341454370,1730901048403,-500.0,0.00029315,2]
[341454371,1730901048412,-500.0,0.00029315,2]
[341454372,1730901048425,-807.28,0.00029315,2]
[341454373,1730901048436,-152.155,0.0002954,5]
[341454374,1730901048445,-151.0,0.00029589,7]
[341454375,1730901048458,-500.0,0.00029589,2]
[341454376,1730901048468,-151.0,0.00029589,2]
[341454377,1730901048477,-603.4,0.00029589,2]
[341454378,1730901048487,-500.0,0.00029589,2]
[341454379,1730901048499,-500.0,0.00029589,2]
[341454380,1730901048508,-500.0,0.00029589,2]
[341454381,1730901048517,-500.0,0.00029589,2]
[341454382,1730901048529,-508.95,0.00029589,2]
[341454383,1730901048538,-891.15,0.00029589,2]
[341454384,1730901048547,-4686.94,0.00029589,2]
[341454385,1730901048557,-500.0,0.00029589,2]
[341454386,1730901048566,-713.47,0.00029589,2]
[341454387,1730901048575,-488.37336525,0.00029589,2]
[341454388,1730901048585,-480.71540798,0.00029589,2]
[341454389,1730901048595,-4318.2,0.00029589,2]
[341454390,1730901048605,-690.35,0.00029589,2]
[341454391,1730901048615,-500.0,0.00029589,2]
[341454392,1730901048624,-500.0,0.00029589,2]
[341454393,1730901048634,-151.0,0.00029589,7]
[341454394,1730901048644,-807.28,0.00029589,2]
[341454395,1730901048653,-151.0,0.00029589,7]
[341454396,1730901048663,-151.0,0.00029589,7]
[341454397,1730901048674,-151.0,0.00029589,7]
[341454398,1730901048683,-531.1696191,0.00029614,2]
[341454399,1730901048694,-500.0,0.00029863,2]
[341454400,1730901048704,-151.0,0.00029863,7]
[341454401,1730901048715,-603.4,0.00029863,2]
[341454402,1730901048726,-151.0,0.00029863,7]
[341454403,1730901048736,-500.0,0.00029863,2]
[341454404,1730901048746,-500.0,0.00029863,2]
[341454405,1730901048756,-500.0,0.00029863,2]
[341454406,1730901048766,-151.0,0.00029863,7]
[341454407,1730901048776,-500.0,0.00029863,2]
[341454408,1730901048785,-151.0,0.00029863,7]
[341454409,1730901048795,-151.0,0.00029863,7]
[341454410,1730901048804,-294.171074,0.00029863,7]
[341454411,1730901048815,-508.95,0.00029863,2]
[341454412,1730901048825,-294.171074,0.00029863,7]
[341454413,1730901048835,-891.15,0.00029863,2]
[341454414,1730901048844,-4686.94,0.00029863,2]
[341454415,1730901048854,-500.0,0.00029863,2]
[341454416,1730901048866,-713.47,0.00029863,2]
[341454417,1730901048875,-216.01366,0.00029863,7]
[341454418,1730901048884,-216.01366,0.00029863,7]
[341454419,1730901048894,-4318.2,0.00029863,2]
[341454420,1730901048905,-690.35,0.00029863,2]
[341454421,1730901048915,-500.0,0.00029863,2]
[341454422,1730901048925,-500.0,0.00029863,2]
[341454423,1730901048936,-807.28,0.00029863,2]
[341454424,1730901048946,-55016.77050448,0.00029899,3]
[341454425,1730901048956,-150.01,0.00029999,2]
[341454426,1730901049062,-12178.19579712,0.00029999,2]
[341454427,1730901049072,-151.0,0.00029999,7]
[341454428,1730901049082,-151.0,0.00029999,7]
[341454429,1730901049092,-151.0,0.00029999,7]
[341454430,1730901049102,-151.0,0.00029999,7]
[341454431,1730901049113,-6623.08087841,0.0003,2]
[341454432,1730901049123,-167.21522792,0.0003,2]
[341454433,1730901049132,-1103.92,0.0003,30]
[341454434,1730901049142,-1055.67,0.0003,30]
[341454435,1730901049151,-260.8,0.0003,14]
[341454436,1730901049162,-151.0,0.0003,120]
[341454437,1730901049172,-151.0,0.0003,120]
[341454438,1730901049181,-6247.52685697,0.0003,2]
[341454439,1730901049191,-19055.22380285,0.0003,2]
[341454440,1730901049201,-668.62572795,0.0003,2]
[341454441,1730901049211,-4780.56853822,0.0003,2]
[341454442,1730901049222,-261.059,0.0003,2]
[341454443,1730901049233,-261.059,0.0003,2]
[341454444,1730901049243,-182.2875,0.0003,2]
[341454445,1730901049254,-182.2875,0.0003,2]
[341454446,1730901049265,-169.09525,0.0003,2]
[341454447,1730901049275,-169.09525,0.0003,2]
[341454448,1730901049284,-151.0,0.0003,2]
[341454449,1730901049295,-151.0,0.0003,7]
[341454450,1730901049305,-151.0,0.0003,7]
[341454451,1730901049315,-151.0,0.0003,7]
[341454452,1730901049324,-151.0,0.0003,7]
[341454453,1730901049333,-294.171074,0.0003,7]
[341454454,1730901049343,-294.171074,0.0003,7]
[341454455,1730901049353,-216.01366,0.0003,7]
[341454456,1730901049362,-216.01366,0.0003,7]
[341454457,1730901049372,-211.0,0.0003,2]
[341454458,1730901049382,-1254.88,0.0003,2]
[341454459,1730901049391,-485.27161956,0.00030006,2]
[341454460,1730901049402,-173.63437,0.00030037,2]
[341454461,1730901049415,-151.0,0.00030037,7]
[341454462,1730901049424,-151.0,0.00030037,7]
[341454463,1730901049435,-294.171074,0.00030037,7]
[341454464,1730901049445,-294.171074,0.00030037,7]
[341454465,1730901049458,-216.01366,0.00030037,7]
[341454466,1730901049468,-216.01366,0.00030037,7]
[341454467,1730901049478,-273.920298,0.00030037,7]
[341454468,1730901049487,-151.0,0.00030037,7]
[341454469,1730901049497,-269.924309,0.00030037,7]
[341454470,1730901049508,-500.0,0.00030073,5]
[341454471,1730901049518,-189.0,0.00030082,2]
[341454472,1730901049528,-189.0,0.00030082,2]
[341454473,1730901049540,-189.0,0.00030082,2]
[341454474,1730901049551,-189.0,0.00030082,2]
[341454475,1730901049561,-189.0,0.00030082,2]
[341454476,1730901049570,-189.0,0.00030082,2]
[341454477,1730901049580,-189.0,0.00030082,2]
[341454478,1730901049589,-189.0,0.00030082,2]
[341454479,1730901049599,-189.0,0.00030082,2]
[341454480,1730901049609,-189.0,0.00030082,2]
[341454481,1730901049618,-189.0,0.00030082,2]
[341454482,1730901049628,-189.0,0.00030082,2]
[341454483,1730901049638,-189.0,0.00030082,2]
[341454484,1730901049647,-189.0,0.00030082,2]